Cogmind - Beta 15 @@@ ROGUE MODE // 2025.06.08 @ 13:56:54 // Winter2019/RPGLIKE Player: Jack Result: Destroyed by Tracker with Linked Autogun Performance ------------- Evolutions (7) 3500 Regions Visited (29) 5800 Robots Destroyed (374) 1870 Value Destroyed (19638) 19638 Prototype IDs (222) 4440 Alien Tech Used (7) 1400 Bonus (11460) 11460 TOTAL SCORE: 48108 Bonus ------- Triggered High Security 500 High Alert Combat Kills 3778 Follower Combat Kills 1118 Network Hubs Disabled 800 Met Data Miner 300 Used Data Conduit 3000 Met Imprinter 300 Met Zhirov 300 Built Enhanced Grunts 300 A7 Reached Mainframe 300 Used Core Reset Matrix 3000 Pursued by Intercept 1500 Friendly Fire -3736 Cogmind --------- Core Integrity 0/1300 Matter 300/300 Energy 21/950 System Corruption 0% +Membrane Temperature Cool (0) Movement Core (150) Ox2 +NEM 1 Location -3/Section 7 Parts ------- > --- POWER (1) -------- Zionite Light DM Reactor > --- PROPULSION (4) --- Antigrav System Antigrav System Improved Antigrav System Improved Antigrav System > --- UTILITY (10) ----- Zionite Biocell Microactuators Microactuators Actuator Array Actuator Array Light Regenerative Plating Light Regenerative Plating (fused) Light Regenerative Plating Light Regenerative Plating Force Field > --- WEAPON (5) ------- Advanced Datajack Power Sword Power Sword Power Sword Power Sword > --- INVENTORY (7) ---- Matter Drive Zionite Biocell (600) Experimental Force Field Transdimensional Reconstructor Subatomic Replicator Peak State ------------ > --- POWER ------------ Zionite Light DM Reactor > --- PROPULSION ------- Zionite Glidesys I Zionite Glidesys I Zionite Glidesys I > --- UTILITY ---------- Zionite Biocell Microactuators Microactuators Actuator Array Actuator Array Light Regenerative Plating Light Regenerative Plating Light Regenerative Plating Force Field Core Physics Calibrator > --- WEAPON ----------- Advanced Datajack Power Sword Power Sword Power Sword Power Sword > --- INVENTORY -------- Protomatter Protomatter Matter Drive Zionite Biocell Experimental Force Field Transdimensional Reconstructor Subatomic Replicator [Rating: 116] Favorites ----------- Power Zionite Light DM Reactor Engine Light Ion Engine Power Core Light Nuclear Core Reactor Zionite Light DM Reactor Propulsion Zionite Glidesys I Hover Unit Zionite Glidesys I Flight Unit VTOL Module Utility Microactuators Device Microactuators Storage Zionite Biocell Hackware System Mapper Protection Light Regenerative Plating Artifact Core Physics Calibrator Weapon Power Sword Ballistic Gun Light Assault Rifle Slashing Weapon Power Sword Special Melee Weapon Advanced Datajack Build | -11 -10 -10 -9 -9 -8 -7 -7 -7 -7 -6 -6 -6 -6 -6 -6 -5 -5 -5 -5 -5 -4 -4 -4 -4 -4 -4 -3 -3 -3 ------- Run | Yrd Mat Min Mat Min Mat Fac Low Low Dat Pro Fac Low Low Zio Dee Pro Fac Upp Upp Zhi Pro Fac Ext Cet Arc Hub Res Qua Sec Slots Evolved 16 | 4 . . . . . 2 . . 1 1 2 . . . 1 1 1 . . . . 1 . . . . . 1 1 Power . | . . . . . . . . . . . . . . . . . . . . . . . . . . . . . . Propulsion 3 | 1 . . . . . . . . . 1 . . . . . . . . . . . . . . . . . . 1 Utility 9 | . . . . . . 2 . . 1 . 2 . . . 1 1 1 . . . . 1 . . . . . . . Weapon 4 | 3 . . . . . . . . . . . . . . . . . . . . . . . . . . . 1 . Parts Attached 69 | 3 . 4 1 . . 17 3 5 2 1 4 . . . 6 . 6 2 . . . 4 . . 4 . . 2 5 Power 10 | . . 1 . . . 3 2 2 . 1 . . . . 1 . . . . . . . . . . . . . . Engine 2 | . . 1 . . . . 1 . . . . . . . . . . . . . . . . . . . . . . Core 6 | . . . . . . 3 . 2 . 1 . . . . . . . . . . . . . . . . . . . Reactor 2 | . . . . . . . 1 . . . . . . . 1 . . . . . . . . . . . . . . Propulsion 19 | . . 2 1 . . 4 . 3 . . 2 . . . 3 . . . . . . . . . . . . . 4 Treads . | . . . . . . . . . . . . . . . . . . . . . . . . . . . . . . Leg . | . . . . . . . . . . . . . . . . . . . . . . . . . . . . . . Wheel . | . . . . . . . . . . . . . . . . . . . . . . . . . . . . . . Hover 7 | . . . . . . . . . . . . . . . 3 . . . . . . . . . . . . . 4 Flight 12 | . . 2 1 . . 4 . 3 . . 2 . . . . . . . . . . . . . . . . . . Utility 23 | . . . . . . 3 . . 2 . 2 . . . 2 . 4 2 . . . 2 . . 4 . . 1 1 Device 11 | . . . . . . 3 . . . . 1 . . . . . . . . . . 2 . . 4 . . 1 . Storage 3 | . . . . . . . . . . . 1 . . . 1 . 1 . . . . . . . . . . . . Processor . | . . . . . . . . . . . . . . . . . . . . . . . . . . . . . . Hackware 2 | . . . . . . . . . 2 . . . . . . . . . . . . . . . . . . . . Protection 6 | . . . . . . . . . . . . . . . 1 . 3 2 . . . . . . . . . . . Artifact 1 | . . . . . . . . . . . . . . . . . . . . . . . . . . . . . 1 Weapon 17 | 3 . 1 . . . 7 1 . . . . . . . . . 2 . . . . 2 . . . . . 1 . Energy Gun . | . . . . . . . . . . . . . . . . . . . . . . . . . . . . . . Energy Cannon . | . . . . . . . . . . . . . . . . . . . . . . . . . . . . . . Ballistic Gun 4 | 3 . 1 . . . . . . . . . . . . . . . . . . . . . . . . . . . Ballistic Cannon . | . . . . . . . . . . . . . . . . . . . . . . . . . . . . . . Launcher . | . . . . . . . . . . . . . . . . . . . . . . . . . . . . . . Special Weapon . | . . . . . . . . . . . . . . . . . . . . . . . . . . . . . . Impact Weapon . | . . . . . . . . . . . . . . . . . . . . . . . . . . . . . . Slashing Weapon 12 | . . . . . . 7 1 . . . . . . . . . 2 . . . . 2 . . . . . . . Piercing Weapon . | . . . . . . . . . . . . . . . . . . . . . . . . . . . . . . Special Melee Weapon 1 | . . . . . . . . . . . . . . . . . . . . . . . . . . . . 1 . Unidentified Prototypes 13 | . . . . . . . . . 2 . . . . . 3 . . . . 1 . . . . . . . 1 6 Parts Lost 4 | . . . . . . 2 . . . . . . . . . . 1 . . . . . . . . . . . 1 Power . | . . . . . . . . . . . . . . . . . . . . . . . . . . . . . . Propulsion 2 | . . . . . . 1 . . . . . . . . . . . . . . . . . . . . . . 1 Utility 1 | . . . . . . . . . . . . . . . . . 1 . . . . . . . . . . . . Weapon 1 | . . . . . . 1 . . . . . . . . . . . . . . . . . . . . . . . Highest Loss Streak 1 | . . . . . . 1 . . . . . . . . . . 1 . . . . . . . . . . . 1 To Critical Strikes . | . . . . . . . . . . . . . . . . . . . . . . . . . . . . . . Average Backups 1 | . . . . . . . . . . 1 . 1 1 1 1 1 1 1 1 1 2 2 2 2 2 3 3 3 5 Power . | . . . . . . . . . . . . . . . . . . . . . . . . . . . . . . Propulsion . | . . . . . . . . . . . . . . . . . . . . . . . . . . . . . . Utility . | . . . . . . . . . . 1 . 1 1 1 1 1 . 1 1 1 1 1 1 1 1 1 1 1 2 Weapon . | . . . . . . . . . . . . . . . . . . . . . . . . . . . . . . Tool/Special . | . . . . . . . . . . . . . . . . . . . . . . . . . . . . . . Unused Backups 4 | . . . . . . . . . . . . . . . . . . . . . . . . . . . . 1 3 Power . | . . . . . . . . . . . . . . . . . . . . . . . . . . . . . . Propulsion . | . . . . . . . . . . . . . . . . . . . . . . . . . . . . . . Utility . | . . . . . . . . . . . . . . . . . . . . . . . . . . . . . . Weapon 1 | . . . . . . . . . . . . . . . . . . . . . . . . . . . . 1 . Tool/Special 3 | . . . . . . . . . . . . . . . . . . . . . . . . . . . . . 3 Average Slot Usage (%) 96 | . 37 52 87 87 87 94 94 100 100 96 98 100 100 100 96 98 95 99 100 99 100 96 100 100 100 100 100 100 99 Core 3 | . . . . . . 9 10 10 9 8 7 7 7 7 3 . . . . . . . . . . . . . . Reactor 2 | . . . . . . . . . . . . . . . 2 6 5 5 5 5 5 5 5 5 5 5 5 5 5 Hover 9 | . . . . . . . . . . . . . . . 7 19 17 17 17 17 17 16 16 16 16 16 16 15 15 Flight 8 | . . 10 25 25 25 19 20 20 18 17 21 21 21 21 12 . . . . . . . . . . . . . . Device 23 | . . . . . . 22 30 30 27 26 26 28 28 28 26 25 23 23 23 23 23 23 27 27 27 27 27 26 25 Storage 3 | . . . . . . . . . . . 3 7 7 7 6 6 6 5 5 5 5 5 5 5 5 5 5 5 5 Hackware 1 | . . . . . . . . . 8 8 7 7 7 7 6 6 4 . . . . . . . . . . . . Protection 10 | . . . . . . . . . . . . . . . 2 5 10 22 23 22 23 22 22 22 22 22 22 21 20 Ballistic Gun 2 | . 37 40 50 50 50 1 . . . . . . . . . . . . . . . . . . . . . . . Slashing Weapon 27 | . . . . . . 40 34 40 36 34 30 28 28 28 26 25 24 23 23 23 23 22 22 22 22 22 22 21 20 Peak Build Rating 116 | 3 3 7 7 7 7 35 39 35 48 43 63 63 63 63 78 78 95 91 91 93 93 98 97 97 100 98 98 114 116 Average Rating 67 | 1 3 4 7 7 7 29 32 34 41 42 55 63 63 63 68 77 83 90 91 92 93 94 96 97 99 98 97 105 108 On Entrance 59 | . 3 3 7 7 7 7 31 35 33 42 43 63 63 63 63 78 78 91 91 91 93 93 97 97 97 98 98 98 107 Naked Turns . | . . . . . . . . . . . . . . . . . . . . . . . . . . . . . . Heaviest Build 68 | 4 4 8 8 8 8 21 28 21 21 21 31 31 31 31 38 38 52 55 52 52 52 60 60 60 60 60 60 68 61 Greatest Support 66 | 8 8 13 13 13 13 20 25 25 23 23 31 31 31 31 57 57 57 57 57 57 57 62 62 62 62 62 62 62 66 Greatest Overweight (x) 2 | . . . . . . 1 1 . . . . . . . 1 . 1 . . . . 2 . . . . . 1 2 Average Overweight (x) . | . . . . . . . . . . . . . . . . . . . . . . . . . . . . . . Largest Inventory Capacity 7 | . . . . . . 1 1 1 1 4 4 4 4 4 4 4 4 4 4 5 5 5 5 5 6 6 6 7 7 Average Capacity 3 | . . . . . . . 1 1 1 2 4 4 4 4 4 4 4 4 4 4 5 5 5 5 5 6 6 6 7 Most Carried 7 | . . . . . . 1 1 1 1 3 4 4 4 4 4 4 4 4 4 5 5 5 5 5 6 6 6 7 7 Average Carried 2 | . . . . . . . . . . 1 3 4 4 4 2 2 3 3 3 4 5 4 4 5 5 6 5 6 6 Final Capacity 7 | . . . . . . 1 1 1 1 4 4 4 4 4 4 4 4 4 4 5 5 5 5 5 6 6 6 7 7 Final Carried 6 | . . . . . . . . 1 1 3 4 4 4 4 1 4 3 4 4 5 5 4 5 5 6 6 6 5 5 Class Distribution -------------------- 44% | Machinist-Gladiator 37% | Hacker-Gladiator 12% | Hacker-Sprinter 3% | Gunner Dominant Class ---------------- Gunner | -10/Materials Gunner | -10/Mines Gunner | -9/Materials Gunner | -9/Mines Hacker-Gunner | -8/Materials Hacker-Gladiator | -7/Factory Hacker-Gladiator | -7/Lower Caves Hacker-Gladiator | -7/Lower Caves Hacker-Sprinter | -7/Data Miner Hacker-Sprinter | -6/Proximity Caves Hacker-Sprinter | -6/Factory Hacker-Sprinter | -6/Lower Caves Hacker-Sprinter | -6/Lower Caves Hacker-Sprinter | -6/Zion Hacker-Sprinter | -6/Deep Caves Hacker-Gladiator | -5/Proximity Caves Hacker-Gladiator | -5/Factory Machinist-Gladiator | -5/Upper Caves Machinist-Gladiator | -5/Upper Caves Machinist-Gladiator | -5/Zhirov Machinist-Gladiator | -4/Proximity Caves Machinist-Gladiator | -4/Factory Machinist-Gladiator | -4/Extension Machinist-Gladiator | -4/Cetus Machinist-Gladiator | -4/Archives Machinist-Gladiator | -4/Hub_04(d) Machinist-Gladiator | -3/Research Machinist-Gladiator | -3/Quarantine Machinist-Gladiator | -3/Section 7 Resources | -11 -10 -10 -9 -9 -8 -7 -7 -7 -7 -6 -6 -6 -6 -6 -6 -5 -5 -5 -5 -5 -4 -4 -4 -4 -4 -4 -3 -3 -3 ----------- Run | Yrd Mat Min Mat Min Mat Fac Low Low Dat Pro Fac Low Low Zio Dee Pro Fac Upp Upp Zhi Pro Fac Ext Cet Arc Hub Res Qua Sec Matter Collected 2557 | 196 13 114 71 95 . 433 20 76 77 16 40 . . . 150 40 317 138 . . 49 213 77 9 88 50 . 30 245 Remotely . | . . . . . . . . . . . . . . . . . . . . . . . . . . . . . . Salvage Created 17140 | . 13 183 239 82 . 1835 627 841 277 245 539 . 93 471 377 849 2234 169 140 . 443 2058 2610 . 362 121 40 776 1516 Parts 925 | . 1 8 17 8 . 107 25 42 15 15 46 . 2 29 28 35 114 15 7 . 17 146 86 3 26 8 5 21 99 Haulers Intercepted . | . . . . . . . . . . . . . . . . . . . . . . . . . . . . . . Recyclers Shooed 2 | . . 1 . . . . . . . . . . . . . . 1 . . . . . . . . . . . . Parts Field Recycled . | . . . . . . . . . . . . . . . . . . . . . . . . . . . . . . Retrieved Matter . | . . . . . . . . . . . . . . . . . . . . . . . . . . . . . . Parts Self-Destructed 129 | . . . . . . . 3 34 . 14 . . . . . 39 . 15 7 . 17 . . . . . . . . Prevented 1 | . . . . . . . . 1 . . . . . . . . . . . . . . . . . . . . . Kills | -11 -10 -10 -9 -9 -8 -7 -7 -7 -7 -6 -6 -6 -6 -6 -6 -5 -5 -5 -5 -5 -4 -4 -4 -4 -4 -4 -3 -3 -3 ------- Run | Yrd Mat Min Mat Min Mat Fac Low Low Dat Pro Fac Low Low Zio Dee Pro Fac Upp Upp Zhi Pro Fac Ext Cet Arc Hub Res Qua Sec Combat Hostiles Destroyed 322 | . . 3 9 3 . 37 1 16 4 8 20 . 1 4 11 18 37 7 4 . 7 56 38 2 2 3 1 1 29 Melee 305 | . . . . . . 35 1 16 4 8 20 . 1 4 11 18 37 7 4 . 7 56 38 2 2 3 1 1 29 Guns 17 | . . 3 9 3 . 2 . . . . . . . . . . . . . . . . . . . . . . . Classes Destroyed 24 | . 1 2 3 . . 4 4 . . . . . . 1 2 . 3 . . . . . 2 . . . . 2 . Worker 3 | . . . . . . . . . . . . . . . . . 1 . . . . 2 . . . . . . . Builder 1 | . . . . . . . . . . . . . . . . . 1 . . . . . . . . . . . . Recycler 11 | . . 2 . . . . . . . . 1 . . . . . 2 . . . . . 4 . . . . 1 1 Minesweeper 1 | . . . . . . . 1 . . . . . . . . . . . . . . . . . . . . . . Operator 9 | . 1 . . . . . . . . . . . . . . . 1 . . . . . . . 6 . . 1 . Watcher 6 | . . . . . . 1 . . . . . . . . . . 1 . . . . 2 1 . . . 1 . . Swarmer 74 | . . 3 4 . . 6 . 5 . 4 6 . . . . 2 4 . 4 . 4 13 10 . . . . . 9 Grunt 97 | . . . 2 2 . 15 1 6 . 3 10 . 1 . . 8 16 4 . . . 14 10 . . . . . 5 Brawler 10 | . . . 1 1 . 1 . 1 . 1 1 . . . . 1 1 . . . . 2 . . . . . . . Duelist 7 | . . . . . . . . 2 . . . . . . . 3 . . . . . 1 1 . . . . . . Protector 1 | . . . . . . . . . . . . . . . . . . . . . . . 1 . . . . . . Researcher 5 | . . . . . . . . . . . . . . . . . . . . . . . . . . . . 2 3 Sentry 37 | . . . 2 . . 2 . 2 . . 3 . . . . 1 5 . . . 1 3 9 . 2 3 1 . 3 Demolisher 1 | . . . . . . . . . . . . . . . . . . . . . . . 1 . . . . . . Specialist 1 | . . . . . . 1 . . . . . . . . . . . . . . . . . . . . . . . Hunter 19 | . . . . . . 1 . . . . . . . . . 3 1 . . . 2 6 4 . . . . . 2 Programmer 41 | . . . . . . 11 . . . . . . . . . . 6 2 . . . 15 1 . . . . . 6 Heavy 1 | . . . . . . . . . . . . . . . . . 1 . . . . . . . . . . . . Behemoth 2 | . . . . . . . . . . . . . . . . . 1 1 . . . . . . . . . . . Cetus Guard 2 | . . . . . . . . . . . . . . . . . . . . . . . . 2 . . . . . S7 Guard 3 | . . . . . . . . . . . . . . . . . . . . . . . . . . . . . 3 Enhanced Grunt 4 | . . . . . . . . . 4 . . . . . . . . . . . . . . . . . . . . Tracker 3 | . . . . . . . . . . . . . . . . . 1 . . . . 1 . . . . . . 1 Combat Programmer 2 | . . . . . . . . . . . . . . . . . 1 . . . . 1 . . . . . . . Fortress 1 | . . . . . . . . . . . . . . . . . . . . . . . . . . . . 1 . Zionite 6 | . . . . . . . . . . . . . . 6 . . . . . . . . . . . . . . . Z-Light 8 | . . . . . . . . . . . . . . . 8 . . . . . . . . . . . . . . Decomposer 2 | . . . . . . . 2 . . . . . . . . . . . . . . . . . . . . . . Assembled 3 | . . . . . . . . . . . . . . . 3 . . . . . . . . . . . . . . Thug 3 | . . . . . . . . 2 . . . . . . . . . . . . . . 1 . . . . . . Savage 1 | . . . . . . . 1 . . . . . . . . . . . . . . . . . . . . . . Butcher 3 | . . . . . . . 3 . . . . . . . . . . . . . . . . . . . . . . Guerrilla 1 | . . . . . . . 1 . . . . . . . . . . . . . . . . . . . . . . Mutant 7 | . . . . . . . 2 1 . . . . . 4 . . . . . . . . . . . . . . . Commander 1 | . . . . . . . 1 . . . . . . . . . . . . . . . . . . . . . . Best Kill Streak 14 | . 1 5 6 2 . 5 2 4 1 4 14 . 1 6 5 7 8 4 4 . 4 6 11 2 5 1 2 2 7 Combat Bots Only 13 | . . 3 6 2 . 5 1 4 1 4 13 . 1 3 5 7 4 4 4 . 4 5 10 2 2 1 1 1 6 Max Kills in Single Turn 2 | . 1 1 1 1 . 1 1 1 1 1 1 . 1 1 1 1 1 1 2 . 2 1 1 1 1 1 1 1 1 Gunslinging . | . . . . . . . . . . . . . . . . . . . . . . . . . . . . . . Exploded . | . . . . . . . . . . . . . . . . . . . . . . . . . . . . . . Melee 2 | . . . . . . 1 1 1 1 1 1 . 1 1 1 1 1 1 2 . 2 1 1 1 1 1 1 1 1 Uniques/NPCs Destroyed 2 | . . . . . . . . . 1 . . . . 1 . . . . . . . . . . . . . . . Data Miner (-7/Data Miner) Imprinter (-6/Zion) Combat | -11 -10 -10 -9 -9 -8 -7 -7 -7 -7 -6 -6 -6 -6 -6 -6 -5 -5 -5 -5 -5 -4 -4 -4 -4 -4 -4 -3 -3 -3 -------- Run | Yrd Mat Min Mat Min Mat Fac Low Low Dat Pro Fac Low Low Zio Dee Pro Fac Upp Upp Zhi Pro Fac Ext Cet Arc Hub Res Qua Sec Hostile Shots Fired 2229 | . . 15 35 11 14 189 2 46 11 14 108 . 4 51 33 88 188 55 16 . 36 414 185 29 32 68 6 40 539 Missed 750 | . . 3 15 2 8 77 . 22 4 4 47 . 2 21 11 32 46 17 3 . 17 136 57 10 15 34 2 13 152 Hits 1479 | . . 12 20 9 6 112 2 24 7 10 61 . 2 30 22 56 142 38 13 . 19 278 128 19 17 34 4 27 387 Melee 24 | . . . . 2 . 3 . 4 . . 1 . . 1 1 4 1 . . . . 6 1 . . . . . . Projectile 1455 | . . 12 20 7 6 109 2 20 7 10 60 . 2 29 21 52 141 38 13 . 19 272 127 19 17 34 4 27 387 AOE 1 | . . . . . . . . . . . . . . . . . . . . . . . . . . . . . 1 Critical Strikes 63 | . . . . . . 2 . 1 . . . . . 1 . . 13 1 . . . 18 10 . . 2 . 1 14 Part Disruptions 1 | . . . . . . . . . . . . . . . . . . . . . . . . 1 . . . . . Damage Taken 17161 | . . 101 212 167 61 2001 30 462 325 142 572 . 15 209 219 479 2000 328 103 . 135 2658 1351 226 186 232 88 590 4269 Core 11203 | . . 83 167 140 51 1704 26 375 296 111 484 . 11 157 176 347 1215 190 48 . 82 1526 751 119 107 125 53 350 2509 Absorbed by Shields 9573 | . . . . . . . . . . . 180 . 16 178 231 445 1500 343 110 . 144 2205 949 209 173 242 89 319 2240 Redirected to Core 8727 | . . 53 143 93 35 950 12 298 110 111 267 . 11 147 138 281 1070 166 48 . 60 1293 696 98 86 89 20 260 2192 Ignored by Resistances 4963 | . . . . . . . . . . 8 208 . 8 36 119 213 582 116 47 . 76 870 624 112 97 124 23 241 1459 Regen/Repaired (Parts) 3215 | . . . . . . 17 . . . . . . . . . 26 529 89 25 . 42 820 359 39 38 36 87 164 944 Core Remaining (%) 96 | 100 . 94 . 100 91 . . . . 100 . . . . . 99 . . . . 95 . . . . 91 . . . Volleys Fired 48 | . 2 8 17 9 . 12 . . . . . . . . . . . . . . . . . . . . . . . Largest 4 | . 3 4 4 4 . 4 . . . . . . . . . . . . . . . . . . . . . . . Hottest 80 | . 60 80 80 80 . 80 . . . . . . . . . . . . . . . . . . . . . . . Shots Fired 185 | . 6 27 68 36 . 48 . . . . . . . . . . . . . . . . . . . . . . . Gun 185 | . 6 27 68 36 . 48 . . . . . . . . . . . . . . . . . . . . . . . Cannon . | . . . . . . . . . . . . . . . . . . . . . . . . . . . . . . Launcher . | . . . . . . . . . . . . . . . . . . . . . . . . . . . . . . Special . | . . . . . . . . . . . . . . . . . . . . . . . . . . . . . . Kinetic 185 | . 6 27 68 36 . 48 . . . . . . . . . . . . . . . . . . . . . . . Thermal . | . . . . . . . . . . . . . . . . . . . . . . . . . . . . . . Explosive . | . . . . . . . . . . . . . . . . . . . . . . . . . . . . . . Electromagnetic . | . . . . . . . . . . . . . . . . . . . . . . . . . . . . . . Robot Hit Streak 14 | . 2 4 8 14 . 7 . . . . . . . . . . . . . . . . . . . . . . . Robot Miss Streak 4 | . 2 3 4 2 . 2 . . . . . . . . . . . . . . . . . . . . . . . Penetration Max . | . . . . . . . . . . . . . . . . . . . . . . . . . . . . . . Secondary Targets 4 | . . . 3 . . 1 . . . . . . . . . . . . . . . . . . . . . . . Max Gunslinging Chain 1 | . . . 1 . . 1 . . . . . . . . . . . . . . . . . . . . . . . Shots Hit Robots 1505 | . 2 13 39 26 . 123 29 51 45 21 73 . 1 36 31 68 198 42 8 . 18 248 159 23 18 19 3 72 139 Core Hits 612 | . 2 8 18 9 . 49 12 26 15 11 30 . 1 15 18 31 71 13 3 . 10 95 66 8 9 7 3 26 56 Critical Kills . | . . . . . . . . . . . . . . . . . . . . . . . . . . . . . . Critical Parts Destroyed . | . . . . . . . . . . . . . . . . . . . . . . . . . . . . . . Critical Strikes 246 | . . . . . . 13 5 9 12 2 16 . . 2 6 12 42 12 2 . 3 48 32 6 2 4 . 3 15 Sever 246 | . . . . . . 13 5 9 12 2 16 . . 2 6 12 42 12 2 . 3 48 32 6 2 4 . 3 15 Melee Attacks 1947 | . . . . . . 149 35 72 87 28 96 . 2 45 60 80 272 46 13 . 25 358 198 26 22 42 7 86 198 Impact . | . . . . . . . . . . . . . . . . . . . . . . . . . . . . . . Slashing 1947 | . . . . . . 149 35 72 87 28 96 . 2 45 60 80 272 46 13 . 25 358 198 26 22 42 7 86 198 Piercing . | . . . . . . . . . . . . . . . . . . . . . . . . . . . . . . Sneak Attacks 88 | . . . . . . 4 25 6 2 . 3 . . 1 . 2 6 . . . . 4 14 . 6 . . 4 11 Combat Hostiles 20 | . . . . . . 3 . . . . 1 . . . . 2 . . . . . 2 5 . . . . . 7 Follow-up Attacks 555 | . . . . . . 27 4 17 19 10 24 . . 9 13 28 70 11 4 . 6 99 77 12 5 11 2 39 68 Damage Inflicted 59572 | . 19 156 401 242 . 3439 1711 1937 1666 777 2934 . 53 1332 1056 2350 7559 1825 340 . 748 10648 7581 988 1244 859 147 3272 6288 Guns 1156 | . 19 156 401 242 . 338 . . . . . . . . . . . . . . . . . . . . . . . Cannons . | . . . . . . . . . . . . . . . . . . . . . . . . . . . . . . Explosions . | . . . . . . . . . . . . . . . . . . . . . . . . . . . . . . Melee 58416 | . . . . . . 3101 1711 1937 1666 777 2934 . 53 1332 1056 2350 7559 1825 340 . 748 10648 7581 988 1244 859 147 3272 6288 Ramming . | . . . . . . . . . . . . . . . . . . . . . . . . . . . . . . Kinetic 1156 | . 19 156 401 242 . 338 . . . . . . . . . . . . . . . . . . . . . . . Thermal . | . . . . . . . . . . . . . . . . . . . . . . . . . . . . . . Explosive . | . . . . . . . . . . . . . . . . . . . . . . . . . . . . . . Electromagnetic . | . . . . . . . . . . . . . . . . . . . . . . . . . . . . . . Impact . | . . . . . . . . . . . . . . . . . . . . . . . . . . . . . . Slashing 58416 | . . . . . . 3101 1711 1937 1666 777 2934 . 53 1332 1056 2350 7559 1825 340 . 748 10648 7581 988 1244 859 147 3272 6288 Piercing . | . . . . . . . . . . . . . . . . . . . . . . . . . . . . . . Highest Corruption 21 | . . . . . . 3 3 3 3 3 . . . 2 2 2 8 8 9 9 9 18 21 21 21 . . . . Average Corruption 5 | . . . . . . 1 3 3 3 3 . . . 1 2 2 3 8 8 9 9 8 20 21 10 . . . . Corruption Purged 21 | . . . . . . . . . . . . . . . . . . . . . . . . . 21 . . . . Corruption Blocked . | . . . . . . . . . . . . . . . . . . . . . . . . . . . . . . Effects 228 | . . . . . . 29 4 7 3 5 . . . . 6 4 24 9 4 3 19 46 37 13 15 . . . . Message Errors 61 | . . . . . . 8 1 2 1 2 . . . . 1 1 6 3 1 3 3 16 7 4 2 . . . . Matter Fused 54 | . . . . . . 8 . 4 1 1 . . . . . . 4 1 1 . 8 11 7 3 5 . . . . Heat Flow Errors 32 | . . . . . . 4 . . . . . . . . 3 2 2 3 . . 2 6 6 1 3 . . . . Energy Discharges 23 | . . . . . . 4 1 1 . 1 . . . . 2 . 4 . . . 3 4 2 . 1 . . . . Parts Rejected 4 | . . . . . . . . . 1 . . . . . . . 1 1 . . . 1 . . . . . . . Parts Fused 2 | . . . . . . . . . . . . . . . . . . . . . . . 2 . . . . . . Data Loss (minor) 33 | . . . . . . 4 1 . . 1 . . . . . 1 4 1 . . 1 7 7 5 1 . . . . Data Loss (major) 9 | . . . . . . 1 . . . . . . . . . . 2 . 1 . 2 . 1 . 2 . . . . Alerts 4 | . . . . . . . 1 . . . . . . . . . 1 . 1 . . . 1 . . . . . . Misdirections 6 | . . . . . . . . . . . . . . . . . . . . . . 1 4 . 1 . . . . Overload Shots . | . . . . . . . . . . . . . . . . . . . . . . . . . . . . . . Overflow Damage 2005 | . . . . . . 112 106 91 35 30 72 . . 13 23 24 358 39 12 . 36 407 244 15 218 . . 9 161 Projectiles . | . . . . . . . . . . . . . . . . . . . . . . . . . . . . . . Explosions . | . . . . . . . . . . . . . . . . . . . . . . . . . . . . . . Melee 2005 | . . . . . . 112 106 91 35 30 72 . . 13 23 24 358 39 12 . 36 407 244 15 218 . . 9 161 Knockbacks . | . . . . . . . . . . . . . . . . . . . . . . . . . . . . . . Impact . | . . . . . . . . . . . . . . . . . . . . . . . . . . . . . . Kinetic . | . . . . . . . . . . . . . . . . . . . . . . . . . . . . . . Secondary . | . . . . . . . . . . . . . . . . . . . . . . . . . . . . . . Self-Inflicted Damage . | . . . . . . . . . . . . . . . . . . . . . . . . . . . . . . Shots . | . . . . . . . . . . . . . . . . . . . . . . . . . . . . . . Rammed . | . . . . . . . . . . . . . . . . . . . . . . . . . . . . . . Targets Rammed . | . . . . . . . . . . . . . . . . . . . . . . . . . . . . . . Kicked . | . . . . . . . . . . . . . . . . . . . . . . . . . . . . . . Crushed . | . . . . . . . . . . . . . . . . . . . . . . . . . . . . . . Highest Temperature 370 | . 20 45 241 199 . 370 . 1 . . 1 . . 10 284 166 277 263 6 . 251 285 295 228 255 29 11 . 17 Average Temperature 79 | . 12 17 108 81 . 162 . 1 . . 1 . . 10 117 48 61 95 2 . 106 66 98 77 88 7 6 . 4 Received Heat Transfer 2906 | . . . 57 57 . 312 18 102 . 18 217 . 8 64 86 134 323 86 . . 4 688 160 41 33 76 8 62 352 Effects 14 | . . . . . . 4 . . . . . . . . . . 3 . . . 1 1 4 1 . . . . . Shutdowns 1 | . . . . . . 1 . . . . . . . . . . . . . . . . . . . . . . . Energy Bleed 7 | . . . . . . 1 . . . . . . . . . . . . . . 1 . 4 1 . . . . . Interference 4 | . . . . . . . . . . . . . . . . . 3 . . . . 1 . . . . . . . Matter Decay 2 | . . . . . . 2 . . . . . . . . . . . . . . . . . . . . . . . Siege Activations . | . . . . . . . . . . . . . . . . . . . . . . . . . . . . . . Martial Activations . | . . . . . . . . . . . . . . . . . . . . . . . . . . . . . . Shielding Activations . | . . . . . . . . . . . . . . . . . . . . . . . . . . . . . . Robots Disrupted . | . . . . . . . . . . . . . . . . . . . . . . . . . . . . . . Combat Hostiles . | . . . . . . . . . . . . . . . . . . . . . . . . . . . . . . Robots Corrupted . | . . . . . . . . . . . . . . . . . . . . . . . . . . . . . . Combat Hostiles . | . . . . . . . . . . . . . . . . . . . . . . . . . . . . . . Parts Fried . | . . . . . . . . . . . . . . . . . . . . . . . . . . . . . . Impact Corruptions . | . . . . . . . . . . . . . . . . . . . . . . . . . . . . . . Robots Melted . | . . . . . . . . . . . . . . . . . . . . . . . . . . . . . . Combat Hostiles . | . . . . . . . . . . . . . . . . . . . . . . . . . . . . . . Parts Melted 3 | . . . . . . . . . . . . . . . . . . . . . . . 2 1 . . . . . Heat Transferred . | . . . . . . . . . . . . . . . . . . . . . . . . . . . . . . Parts Sabotaged . | . . . . . . . . . . . . . . . . . . . . . . . . . . . . . . Parts Stolen . | . . . . . . . . . . . . . . . . . . . . . . . . . . . . . . Parts Stripped . | . . . . . . . . . . . . . . . . . . . . . . . . . . . . . . Power Chain Reactions . | . . . . . . . . . . . . . . . . . . . . . . . . . . . . . . Alert | -11 -10 -10 -9 -9 -8 -7 -7 -7 -7 -6 -6 -6 -6 -6 -6 -5 -5 -5 -5 -5 -4 -4 -4 -4 -4 -4 -3 -3 -3 ------- Run | Yrd Mat Min Mat Min Mat Fac Low Low Dat Pro Fac Low Low Zio Dee Pro Fac Upp Upp Zhi Pro Fac Ext Cet Arc Hub Res Qua Sec Maximum Alert Level 5 | . . . 1 . . 2 . . . . 2 . . . . . 3 . . . . 4 5 4 2 3 2 1 2 Low Security (%) 19 | 100 100 100 80 100 100 10 . . . . 22 . . . . . 31 . . . . 19 . . . 30 . 3 22 Level 1 29 | . . . 19 . . 50 . . . . 49 . . . . . 11 . . . . 17 . . . 6 30 96 28 Level 2 31 | . . . . . . 39 . . . . 28 . . . . . 25 . . . . 15 7 . 100 30 69 . 48 Level 3 12 | . . . . . . . . . . . . . . . . . 31 . . . . 36 39 13 . 33 . . . Level 4 6 | . . . . . . . . . . . . . . . . . . . . . . 11 34 86 . . . . . Level 5 . | . . . . . . . . . . . . . . . . . . . . . . . 9 . . . . . . High Security . | . . . . . . . . . . . . . . . . . . . . . . . 9 . . . . . . Max Security . | . . . . . . . . . . . . . . . . . . . . . . . . . . . . . . Peak Influence 1988 | . 5 70 257 156 48 511 . . . . 514 . . . . . 933 . . . . 1184 1988 1219 597 934 426 258 532 Initial 1112 | . . . 23 100 44 7 . . . . 65 . . . . . 170 . . . . . 576 1112 431 140 426 233 106 Average 471 | . 1 24 104 114 39 351 . . . . 320 . . . . . 481 . . . . 623 1187 1149 502 507 407 233 331 Influence Increases 11337 | . 5 80 294 156 34 1265 25 370 20 195 663 . 35 . . 460 1295 170 90 . 160 1754 1814 126 226 974 69 137 920 Destroy 0b10 Robot/C 6680 | . . 60 180 80 20 740 20 320 20 160 400 . 20 . . 360 740 140 80 . 140 1120 900 60 80 320 20 60 640 Destroy 0b10 Robot/NC 170 | . 5 10 . . . 5 5 . . . 5 . . . . . 30 . . . . 20 35 5 30 . 5 10 5 Destroy Leader 1244 | . . 10 40 20 10 192 . 20 . 20 80 . . . . 40 192 30 10 . 20 264 94 . . 80 12 . 110 Allied During Kill 1211 | . . . . 11 . . . . . . . . . . . . . . . . . . 730 61 110 299 . . . Successful Hack 110 | . . . 7 . 4 20 . . . . 6 . . . . . 10 . . . . 21 4 . . 16 . 16 6 Select Force Hacks 230 | . . . . . . 30 . . . . . . . . . . . . . . . . . . . 200 . . . Disable Machine 225 | . . . 15 . . 15 . . . . 15 . . . . . 30 . . . . . . . . 15 . 45 90 Destroy Structure 192 | . . . 7 . . 8 . . . . 7 . . . . . 38 . . . . 44 6 . 6 44 2 6 24 Partial Spotted 210 | . . . . . . 45 . . . . 15 . . . . . 45 . . . . 45 . . . . 30 . 30 Lose Combat Pursuer 1065 | . . . 45 45 . 210 . 30 . 15 135 . 15 . . 60 210 . . . . 240 45 . . . . . 15 Influence Decreases 10813 | . 5 20 97 297 132 757 345 254 342 90 254 221 77 251 . 190 636 504 164 521 160 576 1004 1036 901 563 468 362 586 Entered New Map 5494 | . . . 37 157 72 11 195 40 322 . 40 191 57 251 . . 100 344 114 521 . . 602 876 647 263 388 182 84 Time Decay 4909 | . 5 20 60 140 20 726 150 214 20 90 214 30 20 . . 190 526 160 50 . 160 576 302 160 254 80 80 180 482 Lost Part 40 | . . . . . . 20 . . . . . . . . . . 10 . . . . . . . . . . . 10 Lost Ally 370 | . . . . . 40 . . . . . . . . . . . . . . . . . 100 . . 220 . . 10 Squads Dispatched 95 | . . . . . . 16 . . . . 6 . . . . 1 18 . . . . 27 5 . . 9 . 2 11 Investigation 33 | . . . . . . 7 . . . . 2 . . . . . 6 . . . . 6 2 . . 8 . 1 1 Extermination 22 | . . . . . . 8 . . . . 1 . . . . . 3 . . . . 6 . . . 1 . 1 2 Reinforcement 8 | . . . . . . . . . . . . . . . . . 5 . . . . . 1 . . . . . 2 Assault 11 | . . . . . . 1 . . . . . . . . . 1 2 . . . . 4 2 . . . . . 1 Garrison 12 | . . . . . . . . . . . 3 . . . . . . . . . . 9 . . . . . . . Intercept 9 | . . . . . . . . . . . . . . . . . 2 . . . . 2 . . . . . . 5 Searches Triggered . | . . . . . . . . . . . . . . . . . . . . . . . . . . . . . . Construction Impeded . | . . . . . . . . . . . . . . . . . . . . . . . . . . . . . . Haulers Reinforced 1 | . . . . . . . . . . . . . . . . . 1 . . . . . . . . . . . . Active Scanning Responses . | . . . . . . . . . . . . . . . . . . . . . . . . . . . . . . Cargo Convoy Interrupts 2 | . . . . . . 1 . . . . . . . . . . 1 . . . . . . . . . . . . Stealth | -11 -10 -10 -9 -9 -8 -7 -7 -7 -7 -6 -6 -6 -6 -6 -6 -5 -5 -5 -5 -5 -4 -4 -4 -4 -4 -4 -3 -3 -3 --------- Run | Yrd Mat Min Mat Min Mat Fac Low Low Dat Pro Fac Low Low Zio Dee Pro Fac Upp Upp Zhi Pro Fac Ext Cet Arc Hub Res Qua Sec Distress Signals 19 | . . . 1 . 1 2 . . . . 2 . . . . . 2 . . . . 2 2 1 . 2 . . 4 Communications Jammed . | . . . . . . . . . . . . . . . . . . . . . . . . . . . . . . Distress Signals . | . . . . . . . . . . . . . . . . . . . . . . . . . . . . . . Times Spotted 585 | . 1 3 14 7 6 64 1 20 4 9 32 . 8 16 11 25 63 7 4 . 7 83 47 5 5 22 4 4 113 Peak Tracking Total 16 | . 1 3 4 3 7 7 1 9 1 4 9 . 9 6 5 9 9 4 4 . 3 6 11 5 3 16 2 1 14 Tactical Retreats 45 | . . . 1 2 . 9 . 2 . 1 4 . 1 1 . 2 7 . . . . 12 2 . . . . . 1 Traps | -11 -10 -10 -9 -9 -8 -7 -7 -7 -7 -6 -6 -6 -6 -6 -6 -5 -5 -5 -5 -5 -4 -4 -4 -4 -4 -4 -3 -3 -3 ------- Run | Yrd Mat Min Mat Min Mat Fac Low Low Dat Pro Fac Low Low Zio Dee Pro Fac Upp Upp Zhi Pro Fac Ext Cet Arc Hub Res Qua Sec Traps Triggered 16 | . . . . . . 4 . . . . . . . . . . 4 . 1 . . 3 2 . . . 1 . 1 Indirectly . | . . . . . . . . . . . . . . . . . . . . . . . . . . . . . . Trap Hack Attempts . | . . . . . . . . . . . . . . . . . . . . . . . . . . . . . . Triggered . | . . . . . . . . . . . . . . . . . . . . . . . . . . . . . . Disarmed . | . . . . . . . . . . . . . . . . . . . . . . . . . . . . . . Reprogrammed . | . . . . . . . . . . . . . . . . . . . . . . . . . . . . . . Reused . | . . . . . . . . . . . . . . . . . . . . . . . . . . . . . . Traps Extracted . | . . . . . . . . . . . . . . . . . . . . . . . . . . . . . . Installed . | . . . . . . . . . . . . . . . . . . . . . . . . . . . . . . Triggered . | . . . . . . . . . . . . . . . . . . . . . . . . . . . . . . Machines | -11 -10 -10 -9 -9 -8 -7 -7 -7 -7 -6 -6 -6 -6 -6 -6 -5 -5 -5 -5 -5 -4 -4 -4 -4 -4 -4 -3 -3 -3 ---------- Run | Yrd Mat Min Mat Min Mat Fac Low Low Dat Pro Fac Low Low Zio Dee Pro Fac Upp Upp Zhi Pro Fac Ext Cet Arc Hub Res Qua Sec Machines Disabled 16 | . . . 1 . . 1 . 1 . . 1 . . . . . 2 . . . . . . . . 1 . 3 6 Max in Single Turn 1 | . . . 1 . . 1 . 1 . . 1 . . . . . 1 . . . . . . . . . . 1 1 Garrison Access 1 | . . . . . . . . . . . . . . . . . 1 . . . . . . . . . . . . Network Hub 4 | . . . . . . . . . . . . . . . . . . . . . . . . . . 4 . . . Machines Repaired . | . . . . . . . . . . . . . . . . . . . . . . . . . . . . . . Machines Dismantled . | . . . . . . . . . . . . . . . . . . . . . . . . . . . . . . Machines Sabotaged 4 | . . . . . . . . . . . . . . . . . . . . . . . . . . 4 . . . Overloaded Fab Kills . | . . . . . . . . . . . . . . . . . . . . . . . . . . . . . . Hacking | -11 -10 -10 -9 -9 -8 -7 -7 -7 -7 -6 -6 -6 -6 -6 -6 -5 -5 -5 -5 -5 -4 -4 -4 -4 -4 -4 -3 -3 -3 --------- Run | Yrd Mat Min Mat Min Mat Fac Low Low Dat Pro Fac Low Low Zio Dee Pro Fac Upp Upp Zhi Pro Fac Ext Cet Arc Hub Res Qua Sec Machines Accessed 67 | . . . 1 . 1 9 2 1 4 . 4 . . . . . 9 . . 4 1 5 10 1 . 8 . 4 3 Terminals 36 | . . . 1 . 1 3 . . . . 2 . . . . . 2 . . . 1 1 10 1 . 8 . 4 2 Fabricators 14 | . . . . . . 3 . . . . 2 . . . . . 5 . . . . 4 . . . . . . . Repair Stations 3 | . . . . . . 1 . . . . . . . . . . 1 . . . . . . . . . . . 1 Recycling Units 1 | . . . . . . 1 . . . . . . . . . . . . . . . . . . . . . . . Scanalyzers 1 | . . . . . . 1 . . . . . . . . . . . . . . . . . . . . . . . Garrison Access 1 | . . . . . . . . . . . . . . . . . 1 . . . . . . . . . . . . Total Hacks 176 | . . . 2 . 3 21 8 1 30 . 11 . . . . . 19 . . 13 1 17 17 1 . 10 . 18 4 Successful 128 | . . . 1 . 3 15 8 1 30 . 8 . . . . . 17 . . 13 1 8 8 1 . 9 . 3 2 Failed 46 | . . . 1 . . 5 . . . . 2 . . . . . 2 . . . . 9 9 . . 1 . 15 2 Catastrophic 6 | . . . . . . 1 . . . . . . . . . . . . . . . . 1 . . . . 3 1 Database Lockouts 2 | . . . . . . 1 . . . . 1 . . . . . . . . . . . . . . . . . . Manual 72 | . . . 2 . 3 10 . . . . 7 . . 4 . . 7 . . . . 5 2 1 . 10 . 17 4 Terminals 72 | . . . 2 . 3 6 . . . . 4 . . . . . 3 . . . 1 4 17 1 . 10 . 18 3 Fabricators 41 | . . . . . . 7 . . . . 7 . . . . . 14 . . . . 13 . . . . . . . Repair Stations 5 | . . . . . . 3 . . . . . . . . . . 1 . . . . . . . . . . . 1 Recycling Units 2 | . . . . . . 2 . . . . . . . . . . . . . . . . . . . . . . . Scanalyzers 3 | . . . . . . 3 . . . . . . . . . . . . . . . . . . . . . . . Garrison Access 1 | . . . . . . . . . . . . . . . . . 1 . . . . . . . . . . . . Terminal Hacks 79 | . . . 1 . 3 3 8 1 30 . 3 . . . . . 2 . . 13 1 1 8 1 . 1 . 2 1 Record 24 | . . . . . . . 7 . 11 . . . . . . . . . . 5 1 . . . . . . . . Part Schematic 21 | . . . . . 2 1 . . 9 . 2 . . . . . 1 . . 4 . 1 . . . . . 1 . Robot Schematic 7 | . . . . . . . . . 7 . . . . . . . . . . . . . . . . . . . . Prototype ID Bank 7 | . . . . . . . . . 3 . . . . . . . . . . 4 . . . . . . . . . Open Door 11 | . . . . . . . 1 1 . . . . . . . . . . . . . . 8 1 . . . . . Level Access Points 3 | . . . . . 1 . . . . . . . . . . . . . . . . . . . . 1 . . 1 Branch Access Points 4 | . . . 1 . . 1 . . . . 1 . . . . . 1 . . . . . . . . . . . . Fabricator Index 1 | . . . . . . 1 . . . . . . . . . . . . . . . . . . . . . . . Recall Investigation 1 | . . . . . . . . . . . . . . . . . . . . . . . . . . . . 1 . Fabricator Hacks 25 | . . . . . . 6 . . . . 4 . . . . . 9 . . . . 6 . . . . . . . Load Schematic 14 | . . . . . . 3 . . . . 2 . . . . . 5 . . . . 4 . . . . . . . Build 11 | . . . . . . 3 . . . . 2 . . . . . 4 . . . . 2 . . . . . . . Repair Station Hacks 1 | . . . . . . 1 . . . . . . . . . . . . . . . . . . . . . . . Refit 1 | . . . . . . 1 . . . . . . . . . . . . . . . . . . . . . . . Recycling Unit Hacks . | . . . . . . . . . . . . . . . . . . . . . . . . . . . . . . Scanalyzer 1 | . . . . . . 1 . . . . . . . . . . . . . . . . . . . . . . . Insert Component 1 | . . . . . . 1 . . . . . . . . . . . . . . . . . . . . . . . Garrison Access Hacks 1 | . . . . . . . . . . . . . . . . . 1 . . . . . . . . . . . . Seal Access 1 | . . . . . . . . . . . . . . . . . 1 . . . . . . . . . . . . Unauthorized Hacks 20 | . . . . . . 3 . . . . 1 . . . . . 5 . . . . 1 . . . 8 . 1 1 Terminals 10 | . . . . . . . . . . . . . . . . . 1 . . . . . . . . 8 . 1 . Assimilate 1 | . . . . . . . . . . . . . . . . . . . . . . . . . . . . 1 . Botnet 1 | . . . . . . . . . . . . . . . . . 1 . . . . . . . . . . . . Sabotage 8 | . . . . . . . . . . . . . . . . . . . . . . . . . . 8 . . . Fabricators 6 | . . . . . . 1 . . . . 1 . . . . . 3 . . . . 1 . . . . . . . Prioritize 6 | . . . . . . 1 . . . . 1 . . . . . 3 . . . . 1 . . . . . . . Repair Stations 3 | . . . . . . 1 . . . . . . . . . . 1 . . . . . . . . . . . 1 Patch 3 | . . . . . . 1 . . . . . . . . . . 1 . . . . . . . . . . . 1 Recycling Units 1 | . . . . . . 1 . . . . . . . . . . . . . . . . . . . . . . . Tunnel 1 | . . . . . . 1 . . . . . . . . . . . . . . . . . . . . . . . Scanalyzers . | . . . . . . . . . . . . . . . . . . . . . . . . . . . . . . Garrison Access . | . . . . . . . . . . . . . . . . . . . . . . . . . . . . . . Data Cores Recovered 3 | . 1 . . . . . . . . . . . . . . . 1 . . . . . . . . . . 1 . Used 2 | . . . . . . . . . . . . . . . . . 1 . . . . . . . . . . 1 . Hacking Detections 31 | . . . . . . 8 . . . . 3 . . . . . 6 . . . . 5 4 . . 1 . 3 1 Full Trace Events 18 | . . . . . . 4 . . . . 2 . . . . . 5 . . . . 4 2 . . . . 1 . Feedback Events 1 | . . . . . . . . . . . . . . . . . . . . . . 1 . . . . . . . Corruption 1 | . . . . . . . . . . . . . . . . . . . . . . 1 . . . . . . . Feedback Blocked . | . . . . . . . . . . . . . . . . . . . . . . . . . . . . . . Robot Schematics Acquired 8 | . . . . . . . . . 7 . . . . . . . . . . . . . . . . . . . 1 Robots Built . | . . . . . . . . . . . . . . . . . . . . . . . . . . . . . . Authchips . | . . . . . . . . . . . . . . . . . . . . . . . . . . . . . . Time . | . . . . . . . . . . . . . . . . . . . . . . . . . . . . . . Total Robot Build Rating . | . . . . . . . . . . . . . . . . . . . . . . . . . . . . . . Part Schematics Acquired 30 | . . . . . 2 1 . . 9 . 2 . . . . . 1 . . 4 . 1 . . . . . 7 3 Parts Built 18 | . . . . . . 6 . . . . 3 . . . . . 5 . . . . 4 . . . . . . . Authchips . | . . . . . . . . . . . . . . . . . . . . . . . . . . . . . . Time 631 | . . . . . . 162 . . . . 123 . . . . . 275 . . . . 71 . . . . . . . Total Part Build Rating 78 | . . . . . . 22 . . . . 15 . . . . . 25 . . . . 16 . . . . . . . Parts Repaired . | . . . . . . . . . . . . . . . . . . . . . . . . . . . . . . Time . | . . . . . . . . . . . . . . . . . . . . . . . . . . . . . . Parts Recycled . | . . . . . . . . . . . . . . . . . . . . . . . . . . . . . . Recycled Matter . | . . . . . . . . . . . . . . . . . . . . . . . . . . . . . . Retrieved Matter . | . . . . . . . . . . . . . . . . . . . . . . . . . . . . . . Retrieved Components . | . . . . . . . . . . . . . . . . . . . . . . . . . . . . . . Parts Scanalyzed 1 | . . . . . . 1 . . . . . . . . . . . . . . . . . . . . . . . Part Schematics Acquired . | . . . . . . . . . . . . . . . . . . . . . . . . . . . . . . Parts Damaged . | . . . . . . . . . . . . . . . . . . . . . . . . . . . . . . Bothacking | -11 -10 -10 -9 -9 -8 -7 -7 -7 -7 -6 -6 -6 -6 -6 -6 -5 -5 -5 -5 -5 -4 -4 -4 -4 -4 -4 -3 -3 -3 ------------ Run | Yrd Mat Min Mat Min Mat Fac Low Low Dat Pro Fac Low Low Zio Dee Pro Fac Upp Upp Zhi Pro Fac Ext Cet Arc Hub Res Qua Sec Used RIF Installer . | . . . . . . . . . . . . . . . . . . . . . . . . . . . . . . Robots Hacked . | . . . . . . . . . . . . . . . . . . . . . . . . . . . . . . Non-combat . | . . . . . . . . . . . . . . . . . . . . . . . . . . . . . . Combat . | . . . . . . . . . . . . . . . . . . . . . . . . . . . . . . Robot Hacks Applied . | . . . . . . . . . . . . . . . . . . . . . . . . . . . . . . Relay Couplers Released . | . . . . . . . . . . . . . . . . . . . . . . . . . . . . . . Fabnet Peak Effective % . | . . . . . . . . . . . . . . . . . . . . . . . . . . . . . . Robots Rewired 12 | . . . . . . . . . . . . . . . . . . . . . . . 12 . . . . . . Allies Hacked . | . . . . . . . . . . . . . . . . . . . . . . . . . . . . . . Hacks Repelled . | . . . . . . . . . . . . . . . . . . . . . . . . . . . . . . Allies | -11 -10 -10 -9 -9 -8 -7 -7 -7 -7 -6 -6 -6 -6 -6 -6 -5 -5 -5 -5 -5 -4 -4 -4 -4 -4 -4 -3 -3 -3 -------- Run | Yrd Mat Min Mat Min Mat Fac Low Low Dat Pro Fac Low Low Zio Dee Pro Fac Upp Upp Zhi Pro Fac Ext Cet Arc Hub Res Qua Sec Total Allies 33 | . . . . 3 . . . . . . . . . . . . . . . . . . 24 5 . . . 1 . Largest Group 16 | . . . . 3 3 . . . . . . . . . . . . . . . . . 16 12 12 11 . 1 1 Highest-Rated Group 898 | . . . . 40 40 . . . . . . . . . . . . . . . . . 718 898 898 739 . 10 10 Highest-Rated Ally 159 | . . . . 16 16 . . . . . . . . . . . . . . . . . 159 159 159 96 . 10 10 Total Orders . | . . . . . . . . . . . . . . . . . . . . . . . . . . . . . . Ally Attacks 251 | . . . . 5 19 . . . . . . . . . . . . . . . . . 111 28 21 67 . . . Total Damage 7431 | . . . . 32 234 . . . . . . . . . . . . . . . . . 3136 740 731 2558 . . . Kills 31 | . . . . 1 1 . . . . . . . . . . . . . . . . . 11 3 2 13 . . . Allies Corrupted 3 | . . . . . . . . . . . . . . . . . . . . . . . 1 . . 2 . . . Allies Melted . | . . . . . . . . . . . . . . . . . . . . . . . . . . . . . . Intel | -11 -10 -10 -9 -9 -8 -7 -7 -7 -7 -6 -6 -6 -6 -6 -6 -5 -5 -5 -5 -5 -4 -4 -4 -4 -4 -4 -3 -3 -3 ------- Run | Yrd Mat Min Mat Min Mat Fac Low Low Dat Pro Fac Low Low Zio Dee Pro Fac Upp Upp Zhi Pro Fac Ext Cet Arc Hub Res Qua Sec Active Infowar (turns) . | . . . . . . . . . . . . . . . . . . . . . . . . . . . . . . Robot Analysis Total 151 | . . . . . . . . . 151 . . . . . . . . . . . . . . . . . . . . Derelict Logs Recovered 10 | . . . . 1 . . 1 1 . . . 1 . 3 . 1 . . 1 . 1 . . . . . . . . Drone Launches . | . . . . . . . . . . . . . . . . . . . . . . . . . . . . . . Drone Recoveries . | . . . . . . . . . . . . . . . . . . . . . . . . . . . . . . Exploration | -11 -10 -10 -9 -9 -8 -7 -7 -7 -7 -6 -6 -6 -6 -6 -6 -5 -5 -5 -5 -5 -4 -4 -4 -4 -4 -4 -3 -3 -3 ------------- Run | Yrd Mat Min Mat Min Mat Fac Low Low Dat Pro Fac Low Low Zio Dee Pro Fac Upp Upp Zhi Pro Fac Ext Cet Arc Hub Res Qua Sec Turns Passed 15389 | 20 49 109 130 298 41 3851 300 446 258 184 452 73 59 317 418 384 1474 321 111 77 623 1835 727 322 554 166 172 373 1245 Spaces Moved 13550 | 30 84 140 173 383 111 1728 627 756 224 352 573 227 180 776 641 395 1140 377 168 139 356 1085 533 109 164 243 157 470 1209 Core 261 | 30 84 85 . . . 5 . . . . . . . . . . 3 . . . . 10 . . . . . . 44 Treads . | . . . . . . . . . . . . . . . . . . . . . . . . . . . . . . Legs . | . . . . . . . . . . . . . . . . . . . . . . . . . . . . . . Wheels . | . . . . . . . . . . . . . . . . . . . . . . . . . . . . . . Hover 6762 | . . . . . . . . . . . . . . . 274 395 1137 377 168 139 356 1075 533 109 164 243 157 470 1165 Flight 6527 | . . 55 173 383 111 1723 627 756 224 352 573 227 180 776 367 . . . . . . . . . . . . . . Fastest Speed 30 | 50 50 37 37 37 37 32 34 32 32 32 30 32 32 32 32 52 52 52 52 52 52 52 52 52 52 52 52 52 48 Average Speed 44 | 50 50 45 37 37 37 34 34 33 32 32 31 32 32 32 41 52 52 52 52 52 52 59 52 52 52 52 52 52 59 Slowest Speed 150 | 50 50 50 37 37 37 114 114 34 32 32 32 32 32 32 112 52 130 52 52 52 52 150 52 52 52 52 52 122 150 Overloaded Moves . | . . . . . . . . . . . . . . . . . . . . . . . . . . . . . . Propulsion Burnouts . | . . . . . . . . . . . . . . . . . . . . . . . . . . . . . . Robots Hopped 9 | . . . 2 2 . 5 . . . . . . . . . . . . . . . . . . . . . . . Potential Cave-ins 2 | . . . . . . . . . . . . . . . . . . . . . . . . . . 2 . . . Cave-ins Triggered . | . . . . . . . . . . . . . . . . . . . . . . . . . . . . . . Teleports 44 | . . . . . . . . . . . . . . . . . . . . . . . . . . . . . 44 Exploration Rate (%) 48 | 4 11 27 30 86 24 30 68 75 81 62 19 41 43 82 76 58 38 51 41 61 57 25 69 67 80 34 6 52 63 Regions Visited 29 Branch Regions 21 Pre-discovered Areas 33 | . . . . 1 . 1 2 . 26 . . . . . . . . . . 3 . . . . . . . . . Known Exits Taken 9 | . . . 1 . 1 1 . . . . 1 . . 1 . 1 1 . 1 . . . . . . 1 . . . Unknown Exits Taken 20 | 1 1 1 . 1 . . 1 1 1 1 . 1 1 . 1 . . 1 . 1 1 1 1 1 1 . 1 1 . Scrap Searched 9 | . . 1 . . . . . 1 . . . . 2 2 . 1 . 1 . . 1 . . . . . . . . Spaces Dug 92 | . . . . . . 6 3 5 . . 7 . . . 7 2 17 . . . 2 15 1 . . 12 1 3 11 Terrain Destroyed 100 | . . . 8 . . 6 3 5 . . 7 . . . 7 2 17 . . . 2 15 1 . . 12 1 3 11 Melee 92 | . . . . . . 6 3 5 . . 7 . . . 7 2 17 . . . 2 15 1 . . 12 1 3 11 Projectile . | . . . . . . . . . . . . . . . . . . . . . . . . . . . . . . AOE 8 | . . . 8 . . . . . . . . . . . . . . . . . . . . . . . . . . Terrain Rammed . | . . . . . . . . . . . . . . . . . . . . . . . . . . . . . . Walls Destroyed . | . . . . . . . . . . . . . . . . . . . . . . . . . . . . . . Machines Disabled . | . . . . . . . . . . . . . . . . . . . . . . . . . . . . . . Actions | -11 -10 -10 -9 -9 -8 -7 -7 -7 -7 -6 -6 -6 -6 -6 -6 -5 -5 -5 -5 -5 -4 -4 -4 -4 -4 -4 -3 -3 -3 --------- Run | Yrd Mat Min Mat Min Mat Fac Low Low Dat Pro Fac Low Low Zio Dee Pro Fac Upp Upp Zhi Pro Fac Ext Cet Arc Hub Res Qua Sec Total 22252 | 32 86 167 204 519 110 4864 703 935 392 417 821 226 180 834 785 559 1960 492 188 142 788 2195 915 365 622 268 245 569 1669 Wait 6418 | . 1 13 1 120 . 2930 22 73 84 38 144 . . 21 59 79 469 48 7 . 414 724 173 235 425 4 73 27 234 Move 13503 | 29 83 139 168 378 110 1717 626 755 223 351 572 226 179 775 640 394 1139 376 167 138 355 1084 532 108 163 242 156 469 1209 Hop 9 | . . . 2 2 . 5 . . . . . . . . . . . . . . . . . . . . . . . Pick Up 77 | . . . . . . 1 . 1 2 2 5 . . . 3 4 15 4 1 1 . 18 5 . 1 . 3 4 7 Fast Attach 108 | 3 . 4 . . . 10 2 2 3 . 2 . . . 6 . 26 7 . 2 . 7 1 . 8 . . 3 22 Attach 23 | . . . . . . 2 . . 1 . 1 . . . 7 3 7 . . . . 1 . . . . . 1 . Detach 20 | . . . . . . 2 . 1 1 . . . . . 6 3 6 . . . . 1 . . . . . . . Swap 28 | . . . 1 . . 10 2 4 . 1 1 . . . 3 . 2 . . . . 2 . . . . . 2 . Drop 144 | . . . 1 . . 14 2 5 3 1 4 . . . 12 1 31 9 1 1 . 23 4 . 5 . 3 6 18 Fire 48 | . 2 8 17 9 . 12 . . . . . . . . . . . . . . . . . . . . . . . Melee 1166 | . . . . . . 100 28 46 53 14 61 . 1 31 37 46 176 33 8 . 17 219 105 13 13 21 3 39 102 Ram . | . . . . . . . . . . . . . . . . . . . . . . . . . . . . . . Kick . | . . . . . . . . . . . . . . . . . . . . . . . . . . . . . . Crush . | . . . . . . . . . . . . . . . . . . . . . . . . . . . . . . Escape Stasis 62 | . . . . . . 36 . . . . . . . . . . 4 . . . . 10 . . . . . . 12 Rewire 42 | . . . . . . . . . . . . . . . . . . . . . . . 42 . . . . . . Trap . | . . . . . . . . . . . . . . . . . . . . . . . . . . . . . . Miscellaneous 604 | . . 3 14 10 . 25 21 48 22 10 31 . . 7 12 29 85 15 4 . 2 106 53 9 7 1 7 18 65 Route ------- -11/Scrapyard -10/Materials -10/Mines -9/Materials (discovered 3 exits: *Min / Sto x2) -9/Mines -8/Materials (discovered 3 exits: *Fac x3) -7/Factory (discovered 2 exits: *Low x2) -7/Lower Caves -7/Lower Caves -7/Data Miner -6/Proximity Caves -6/Factory (discovered 4 exits: *Fac x2 / *Low x2) -6/Lower Caves -6/Lower Caves -6/Zion -6/Deep Caves -5/Proximity Caves -5/Factory (discovered 2 exits: *Upp x2) -5/Upper Caves -5/Upper Caves -5/Zhirov -4/Proximity Caves -4/Factory (discovered 2 exits: *Ext / Arm) -4/Extension (discovered 2 exits: *Res / *Cet) -4/Cetus -4/Archives (discovered 3 exits: *Res / *Hub x2) -4/Hub_04(d) (discovered 4 exits: *Res x4) -3/Research (discovered 2 exits: *Res / *Qua) -3/Quarantine (discovered 3 exits: *Res / *Sec / [*Frg]) -3/Section 7 (discovered 1 exit: Res) History --------- Turn | Location | Event 7 | -11/Scrapyard | Upgraded with Propulsion slot (x1) 7 | -11/Scrapyard | Upgraded with Weapon slot (x3) 10 | -11/Scrapyard | Discovered new exit (range 15) 21 | -11/Scrapyard | Entered Materials 38 | -10/Materials | Discovered new exit (range 16) 70 | -10/Materials | Entered Mines 97 | -10/Mines | Found a hidden stash of uninstalled traps 177 | -10/Mines | Discovered new exit (range 5) 179 | -10/Mines | Entered Materials 181 | -9/Materials | Reached level 2 249 | -9/Materials | Identified exit to Mines 249 | -9/Materials | Identified exit to Storage 258 | -9/Materials | Reached level 3 307 | -9/Materials | Build established: Gunner 309 | -9/Materials | Entered Mines 335 | -9/Mines | Assembled infested the area 336 | -9/Mines | Learned location of Storage (-9) 452 | -9/Mines | Assisted by bots powering up and referring to "LRC-V3" 520 | -9/Mines | Reached level 4 559 | -9/Mines | Discovered new exit (range 12) 607 | -9/Mines | Entered Materials 607 | -8/Materials | Accompanied by 3 allies 609 | -8/Materials | Reached level 5 615 | -8/Materials | Identified exit to Factory 648 | -8/Materials | Entered Factory 650 | -7/Factory | Reached level 6 708 | -7/Factory | Fabricated Katana (x2) 975 | -7/Factory | Core integrity fell below 50% 1074 | -7/Factory | Core integrity fell below 20% 1077 | -7/Factory | Reached level 7 1279 | -7/Factory | Build established: Hacker-Gladiator 1476 | -7/Factory | Central database locked down 1574 | -7/Factory | Fabricated Microactuators? 1586 | -7/Factory | Upgraded with Utility slot (x1) 1761 | -7/Factory | Reached level 8 1773 | -7/Factory | Fabricated Microactuators (x2) 1783 | -7/Factory | Cargo convoy interrupted 1871 | -7/Factory | Upgraded with Utility slot (x1) 3577 | -7/Factory | Reached level 9 4248 | -7/Factory | First assault squad dispatched 4463 | -7/Factory | Identified exit to Lower Caves 4499 | -7/Factory | Entered Lower Caves 4580 | -7/Lower Caves | Learned 8 Factory zone layouts 4627 | -7/Lower Caves | Entered an active Warlord outpost 4662 | -7/Lower Caves | A Commander dispatched an escort 4676 | -7/Lower Caves | Destroyed A2-S51(g) 4686 | -7/Lower Caves | Learned location of 1 exit from Factory 4686 | -7/Lower Caves | Learned Extension emergency access door positions 4686 | -7/Lower Caves | Learned Armory terminal intel 4686 | -7/Lower Caves | Learned Extension garrison access intel 4706 | -7/Lower Caves | Murdered 7 allies 4774 | -7/Lower Caves | Discovered new exit (range 5) 4776 | -7/Lower Caves | Encountered a Warlord checkpoint 4799 | -7/Lower Caves | Entered another Lower Caves area 4801 | -7/Lower Caves | Reached level 10 4861 | -7/Lower Caves | Attracted the attention of an 0b10 checkpoint 4996 | -7/Lower Caves | Attracted the attention of an 0b10 base 5017 | -7/Lower Caves | Encountered a Warlord checkpoint 5053 | -7/Lower Caves | Reached level 11 5137 | -7/Lower Caves | Murdered 3 allies 5137 | -7/Lower Caves | Learned Factory terminal intel 5168 | -7/Lower Caves | Discovered new exit (range 8) 5177 | -7/Lower Caves | Entered a destroyed Warlord outpost 5245 | -7/Lower Caves | Entered Data Miner 5245 | -7/Data Miner | Discovered new exit (range 6) 5252 | -7/Data Miner | Met Data Miner 5258 | -7/Data Miner | Learned location of Section 7 (-3) 5258 | -7/Data Miner | Acquired the access code to Warlord's prototype stash 5264 | -7/Data Miner | Received God Mode back door access code from Data Miner 5267 | -7/Data Miner | Destroyed Data Miner 5269 | -7/Data Miner | Upgraded with Utility slot (x1) 5269 | -7/Data Miner | Found Prototype Hackware 5269 | -7/Data Miner | Identified System Mapper 5272 | -7/Data Miner | Found Prototype Hackware 5272 | -7/Data Miner | Identified Quantum Router 5275 | -7/Data Miner | Reached level 12 5275 | -7/Data Miner | Interfaced with the Data Conduit 5440 | -7/Data Miner | Build established: Hacker-Sprinter 5503 | -7/Data Miner | Entered Proximity Caves 5505 | -6/Proximity Caves | Reached level 13 5596 | -6/Proximity Caves | Reached level 14 5608 | -6/Proximity Caves | Upgraded with Propulsion slot (x1) 5682 | -6/Proximity Caves | Discovered new exit (range 12) 5687 | -6/Proximity Caves | Entered Factory 5688 | -6/Factory | Identified exit to Factory 5689 | -6/Factory | Reached level 15 5690 | -6/Factory | Loaded intel: 294 machine locations 5691 | -6/Factory | Loaded intel: 26 terminal locations 5719 | -6/Factory | Central database locked down 5759 | -6/Factory | Garrison activated, responded to threat 5834 | -6/Factory | Reached level 16 5860 | -6/Factory | Destroyed 13 combat bots 5906 | -6/Factory | Fabricated Force Field? 5915 | -6/Factory | Upgraded with Utility slot (x1) 5918 | -6/Factory | Upgraded with Utility slot (x1) 5958 | -6/Factory | Discovered exit to Factory (range 16) 6043 | -6/Factory | Fabricated Lgt. Regenerative Plating? 6124 | -6/Factory | Identified exit to Lower Caves 6139 | -6/Factory | Entered Lower Caves 6141 | -6/Lower Caves | Reached level 17 6144 | -6/Lower Caves | Encountered a Warlord checkpoint 6186 | -6/Lower Caves | Learned Factory stockpile data 6210 | -6/Lower Caves | Discovered new exit (range 8) 6212 | -6/Lower Caves | Entered another Lower Caves area 6265 | -6/Lower Caves | Discovered new exit (range 15) 6271 | -6/Lower Caves | Entered Zion 6343 | -6/Zion | Learned Factory stockpile data 6433 | -6/Zion | Identified exit to Deep Caves 6465 | -6/Zion | Met Imprinter 6467 | -6/Zion | Murdered Imprinter 6468 | -6/Zion | Extracted access codes from Imprinter's data core 6468 | -6/Zion | Attacked by Zionites 6529 | -6/Zion | Opened final containment barrier to the Deep Caves 6534 | -6/Zion | Saw the warning signs outside the Deep Caves entrance 6588 | -6/Zion | Entered Deep Caves 6590 | -6/Deep Caves | Reached level 18 6593 | -6/Deep Caves | Upgraded with Utility slot (x1) 7002 | -6/Deep Caves | Discovered new exit (range 7) 7006 | -6/Deep Caves | Entered Proximity Caves 7122 | -5/Proximity Caves | Reached level 19 7137 | -5/Proximity Caves | Build established: Hacker-Gladiator 7221 | -5/Proximity Caves | Attracted the attention of an 0b10 outpost 7290 | -5/Proximity Caves | Destroyed 7 combat bots 7352 | -5/Proximity Caves | Reached level 20 7376 | -5/Proximity Caves | Upgraded with Utility slot (x1) 7382 | -5/Proximity Caves | Discovered exit to Factory (range 16) 7390 | -5/Proximity Caves | Attracted the attention of an 0b10 checkpoint 7390 | -5/Proximity Caves | Entered Factory 7392 | -5/Factory | Loaded intel: 296 machine locations 7625 | -5/Factory | Reached level 21 8052 | -5/Factory | Fabricated Lgt. Regenerative Plating (x1) 8124 | -5/Factory | Upgraded with Utility slot (x1) 8211 | -5/Factory | Fabricated Lgt. Regenerative Plating (x1) 8290 | -5/Factory | First assault squad dispatched 8293 | -5/Factory | Identified exit to Upper Caves 8315 | -5/Factory | Spotted B-75 Beast 8379 | -5/Factory | Destroyed B-75 Beast 8404 | -5/Factory | Reached level 22 8480 | -5/Factory | Fabricated Power Sword (x2) 8588 | -5/Factory | Cargo convoy interrupted 8641 | -5/Factory | Intercept squad dispatched 8655 | -5/Factory | Spotted Tracker 8666 | -5/Factory | Destroyed Tracker 8710 | -5/Factory | Spotted Combat Programmer 8730 | -5/Factory | Destroyed Combat Programmer 8834 | -5/Factory | Fabricated Lgt. Regenerative Plating? 8845 | -5/Factory | Build established: Machinist-Gladiator 8864 | -5/Factory | Entered Upper Caves 8877 | -5/Upper Caves | Encountered a Warlord checkpoint 8984 | -5/Upper Caves | Spotted B-75 Beast 8997 | -5/Upper Caves | Destroyed B-75 Beast 9179 | -5/Upper Caves | Discovered new exit (range 11) 9185 | -5/Upper Caves | Entered another Upper Caves area 9260 | -5/Upper Caves | Identified exit to Zhirov 9296 | -5/Upper Caves | Entered Zhirov 9296 | -5/Zhirov | Discovered new exit (range 3) 9298 | -5/Zhirov | Reached level 23 9306 | -5/Zhirov | Met Zhirov 9318 | -5/Zhirov | Found Alien Artifact 9318 | -5/Zhirov | Identified Integrated Reactor 9318 | -5/Zhirov | Installed Integrated Reactor, increased core energy generation (+10) 9328 | -5/Zhirov | Found Alien Artifact 9358 | -5/Zhirov | Zhirov requested help retrieving the SGEMP Prototype 9373 | -5/Zhirov | Entered Proximity Caves 9388 | -4/Proximity Caves | Attracted the attention of an 0b10 checkpoint 9589 | -4/Proximity Caves | Learned Research interactive machine intel 9630 | -4/Proximity Caves | Discovered new exit (range 4) 9996 | -4/Proximity Caves | Entered Factory 9997 | -4/Factory | Identified exit to Armory 9998 | -4/Factory | Reached level 24 9999 | -4/Factory | Loaded intel: 327 machine locations 10283 | -4/Factory | Reached level 25 10286 | -4/Factory | Upgraded with Utility slot (x1) 10351 | -4/Factory | Garrison activated, responded to threat 10676 | -4/Factory | Garrison activated, responded to threat 10738 | -4/Factory | Fabricated Power Sword? 11115 | -4/Factory | Fabricated Actuator Array? 11131 | -4/Factory | System corruption reached 10% 11219 | -4/Factory | Spotted B-86 Titan 11246 | -4/Factory | First assault squad dispatched 11342 | -4/Factory | Reached level 26 11549 | -4/Factory | Garrison activated, responded to threat 11685 | -4/Factory | Intercept squad dispatched 11686 | -4/Factory | Spotted Tracker 11698 | -4/Factory | Destroyed Tracker 11711 | -4/Factory | Spotted Combat Programmer 11720 | -4/Factory | Destroyed Combat Programmer 11825 | -4/Factory | Discovered new exit (range 12) 11831 | -4/Factory | Entered Extension 11833 | -4/Extension | Loaded intel: 42 machine locations 11910 | -4/Extension | Destroyed 8 combat bots 11973 | -4/Extension | Rescued a captive Derelict 12037 | -4/Extension | Rescued a captive Derelict 12044 | -4/Extension | Rescued a captive Derelict 12045 | -4/Extension | Rescued a captive Derelict 12059 | -4/Extension | Rescued a captive Derelict 12060 | -4/Extension | Rescued a captive Derelict 12111 | -4/Extension | Spotted B-86 Titan 12114 | -4/Extension | Spotted B-86 Titan 12141 | -4/Extension | Allies destroyed B-86 Titan 12152 | -4/Extension | Allies destroyed B-86 Titan 12170 | -4/Extension | Reached level 27 12215 | -4/Extension | Rescued a captive Derelict 12330 | -4/Extension | Rescued a captive Derelict 12330 | -4/Extension | Rescued a captive Derelict 12331 | -4/Extension | First assault squad dispatched 12429 | -4/Extension | Lost 3 allies 12439 | -4/Extension | Rescued a captive Derelict 12441 | -4/Extension | Rescued a captive Derelict 12460 | -4/Extension | Rescued A7 12469 | -4/Extension | Destroyed 10 combat bots 12492 | -4/Extension | High security lockdown imminent 12514 | -4/Extension | Discovered new exit (range 10) 12515 | -4/Extension | Discovered new exit (range 6) 12558 | -4/Extension | Entered Cetus 12558 | -4/Cetus | Accompanied by 8 allies (A7) 12559 | -4/Cetus | Loaded intel: 24 machine locations 12563 | -4/Cetus | Acquired a Cetus Manufacturing Module code from A7 12570 | -4/Cetus | Spotted Cetus Guard 12570 | -4/Cetus | Spotted Cetus Guard 12571 | -4/Cetus | Spotted Cetus Guard 12572 | -4/Cetus | Spotted Cetus Guard 12586 | -4/Cetus | Allies destroyed Cetus Guard 12588 | -4/Cetus | Destroyed Cetus Guard 12595 | -4/Cetus | Destroyed Cetus Guard 12629 | -4/Cetus | Escorted A7 to Cetus Mainframe 12637 | -4/Cetus | Started Cetus Manufacturing Module 12662 | -4/Cetus | Manufactured an Enhanced Grunt 12687 | -4/Cetus | Manufactured an Enhanced Grunt 12712 | -4/Cetus | Manufactured an Enhanced Grunt 12737 | -4/Cetus | Manufactured an Enhanced Grunt 12762 | -4/Cetus | Manufactured an Enhanced Grunt 12833 | -4/Cetus | Discovered new exit (range 15) 12880 | -4/Cetus | Entered Archives 12880 | -4/Archives | Accompanied by 12 allies (A7) 12881 | -4/Archives | Loaded intel: 8 machine locations 12885 | -4/Archives | Received a hacking code to weaken MAIN.C 12896 | -4/Archives | Discovered new exit (range 13) 12907 | -4/Archives | Discovered new exit (range 14) 12929 | -4/Archives | Discovered new exit (range 14) 13434 | -4/Archives | Entered Hub_04(d) 13434 | -4/Hub_04(d) | Accompanied by 11 allies 13435 | -4/Hub_04(d) | Loaded intel: 101 machine locations 13436 | -4/Hub_04(d) | Reached level 28 13511 | -4/Hub_04(d) | Discovered new exit (range 10) 13557 | -4/Hub_04(d) | Network Hub disabled 13563 | -4/Hub_04(d) | Spotted Lightning 13567 | -4/Hub_04(d) | Network Hub disabled 13572 | -4/Hub_04(d) | Identified exit to Research 13572 | -4/Hub_04(d) | Network Hub disabled 13586 | -4/Hub_04(d) | Network Hub disabled 13600 | -4/Hub_04(d) | Entered Research 13601 | -3/Research | Loaded intel: 130 machine locations 13602 | -3/Research | Loaded intel: 46 interactive machine locations 13710 | -3/Research | Discovered new exit (range 11) 13764 | -3/Research | Discovered new exit (range 15) 13772 | -3/Research | Entered Quarantine 13773 | -3/Quarantine | Loaded intel: 72 machine locations 13774 | -3/Quarantine | Reached level 29 13833 | -3/Quarantine | Upgraded with Weapon slot (x1) 13836 | -3/Quarantine | Found Alien Energy Cannon 13942 | -3/Quarantine | Found Alien Reactor 13946 | -3/Quarantine | Discovered new exit (range 8) 13954 | -3/Quarantine | Found Alien Artifact 14000 | -3/Quarantine | Spotted Fortress 14059 | -3/Quarantine | Destroyed Fortress 14066 | -3/Quarantine | Found Prototype Device 14066 | -3/Quarantine | Identified Exp. Force Field 14126 | -3/Quarantine | Discovered new exit (range 5) 14126 | -3/Quarantine | Discovered new exit (range 6) 14145 | -3/Quarantine | Entered Section 7 14145 | -3/Section 7 | Accompanied by 1 ally 14146 | -3/Section 7 | Loaded intel: 122 machine locations 14195 | -3/Section 7 | Spotted S7 Guard 14212 | -3/Section 7 | Destroyed S7 Guard 14331 | -3/Section 7 | Found Alien Artifact 14331 | -3/Section 7 | Identified Navigation Efficiency Matrix 14331 | -3/Section 7 | Installed Navigation Efficiency Matrix, process failed with unexpected side effects 14418 | -3/Section 7 | Found Alien Artifact 14418 | -3/Section 7 | Identified Integrated Dissipator 14418 | -3/Section 7 | Installed Integrated Dissipator, increased core heat dissipation (+20) 14435 | -3/Section 7 | Spotted S7 Guard 14460 | -3/Section 7 | Destroyed S7 Guard 14468 | -3/Section 7 | Found Alien Artifact 14468 | -3/Section 7 | Identified Core Physics Calibrator 14473 | -3/Section 7 | Spotted S7 Guard 14479 | -3/Section 7 | Destroyed S7 Guard 14494 | -3/Section 7 | Found Alien Artifact 14494 | -3/Section 7 | Identified Core Membrane 14494 | -3/Section 7 | Installed Core Membrane, gained immunity to corruption 14521 | -3/Section 7 | Found Integrated Reactor 14521 | -3/Section 7 | Installed Integrated Reactor, increased core energy generation (+10) 14635 | -3/Section 7 | Spotted B-86 Titan 14665 | -3/Section 7 | Reached level 30 14700 | -3/Section 7 | Spotted Alpha 7 14715 | -3/Section 7 | Spotted Alpha 7 14724 | -3/Section 7 | Spotted B-99 Colossus 14752 | -3/Section 7 | Intercept squad dispatched 14762 | -3/Section 7 | Found Alien Artifact 14762 | -3/Section 7 | Identified LRC Energy Well 14762 | -3/Section 7 | Installed LRC Energy Well, increased energy storage capacity (+250) 14813 | -3/Section 7 | Found Alien Artifact 14813 | -3/Section 7 | Identified Core Reset Matrix 14813 | -3/Section 7 | Identified Subatomic Replicator 14813 | -3/Section 7 | Identified Transdimensional Reconstructor 14813 | -3/Section 7 | Identified Matter Drive 14813 | -3/Section 7 | Used Core Reset Matrix 14817 | -3/Section 7 | Detected hypermatrix surge 14817 | -3/Section 7 | Sensed 14 artifacts in vicinity 14899 | -3/Section 7 | Spotted Tracker 14899 | -3/Section 7 | Spotted Tracker 14909 | -3/Section 7 | Core integrity fell below 50% 14936 | -3/Section 7 | Destroyed Tracker 15074 | -3/Section 7 | Upgraded with Propulsion slot (x1) 15145 | -3/Section 7 | First assault squad dispatched 15163 | -3/Section 7 | Identified exit to Research 15363 | -3/Section 7 | Intercept squad dispatched 15368 | -3/Section 7 | Spotted Tracker 15368 | -3/Section 7 | Spotted Tracker 15369 | -3/Section 7 | Spotted Tracker 15385 | -3/Section 7 | Spotted Combat Programmer 15386 | -3/Section 7 | Spotted Combat Programmer 15387 | -3/Section 7 | Core integrity fell below 20% 15388 | -3/Section 7 | Spotted Combat Programmer 15390 | -3/Section 7 | Destroyed by Tracker with Linked Autogun Last Messages --------------- Field strength at 37. Field strength at 30. Antigrav System temporarily disabled. Field strength at 23. Antigrav System temporarily disabled. Field strength at 17. Field strength at 11. Stasis field depleted. Core Membrane filtered system corruption (1). Tracker Prototype Flight Unit temporarily disabled. Imp. Antigrav System temporarily disabled. Core Membrane filtered system corruption (1). Combat Programmer resets Tracker, system corruption cleaned. Power Sword follow-up attack on Tracker. Penetrated by EMDS Slug. Core Membrane filtered system corruption (1). Critical hit (Destroy). Penetrated by EMDS Slug. Quantum Generator explodes. Tracker destroyed. Map ----- +----------------------------------------------------+ | ????????????????????????????????+ #?# | | ????????????????????????????????# #?# ###### | | ???????????????????############## #?# #????? | | ???????????????????# # #?# #????? | | ???????????????????# """ # #?# #????? | | ???????????????????# ""R" # #?# #????? | | ???????????????????# """ "" " # #?# #????? | | ???????????????????# """ !# #?# #????? | | ???????????????????# """ !+% #?# #????? | | ???????????????????# """ #! #?# #????? | | ???????????????????# """ # #?# #????? | | ??????????????????##= """ # #?# #????? | | ??????????????????# ! """ # T# #????? | | ???????????????????#! # "# ###### | | ???????????????????# # ### # ! | | ???????????????????########+##### #?#% # | | ??????????????????????????# #?# + ] ! | | ??????????????????????????# ######## #?# # | | ??????????????????????????# #??????? #?# # | | ??????????????????????????# #??????? #?# #####+ | | ???????????????????????##?# #??????# #?# | | ????????????????????#### ## ###???## ### | | ???????????????????## ##??# # == "" | | ???????????????????# #### # == "" | | ???????????????????# s p%pp # ### == "" | | ???????????????????# @! # ### "" | | ??????????????????# # # "" | | ??????????????????## s # # "" | | ???????????????????# # ### "" | | ???????????????????# # "" | | ???????????????????# + "" | | ???????????????????# """"""" # | | ???????????????????## """"""" # | | ????????????????????## """"""" # ########### | | ?????????????????????# # #?????????? | | ?????????????????????# # #?????????? | | ????????????????????############### #?????????? | | ????????????????????# #?????????? | | ????????????????????# = #?????????? | | ????????????????????# %+?????????? | | ????????????????????# !########??# | | ???????????####?????#" """"""" # # | | ???????????#""#?????# """"""" # """"""" # | | ??????######T"####### """"""" # """"""" # | | ??????# % # """"""" # | | ??????# # # | | ??????# + [# | | ??????# ########## # ! # | | ??????# ### !#????????# # # | | ??????# #?# #????????# #####+##### | +----------------------------------------------------+ Best States ------------- Heat Dissipation 69 Energy Generation 67 Energy Capacity 1300 Matter Stores 300 Matter Capacity 300 Sight Range 16 Terrain Scan Density 10 Armor Coverage 600 Resistance: KI 20 Resistance: TH 20 Melee Speed Boost 50 Evasion (%) 63 Offensive Hacking 55 Item Schematics ----------------- None Robot Schematics ------------------ A-27 Freighter | -3/Section 7 | Archive Fabricated ------------ Katana | x2 | -7/Factory Microactuators | x2 | -7/Factory Microactuators | x2 | -7/Factory Force Field | x2 | -6/Factory Lgt. Regenerative Plating | x1 | -6/Factory Lgt. Regenerative Plating | x1 | -5/Factory Lgt. Regenerative Plating | x1 | -5/Factory Power Sword | x2 | -5/Factory Lgt. Regenerative Plating | x1 | -5/Factory Power Sword | x2 | -4/Factory Actuator Array | x2 | -4/Factory Repaired ---------- Nothing Alien Tech Used ----------------- Integrated Reactor Navigation Efficiency Matrix Integrated Dissipator Core Physics Calibrator Core Membrane LRC Energy Well Core Reset Matrix Achievements -------------- None Challenges ------------ None RPGLIKE | -11 -10 -10 -9 -9 -8 -7 -7 -7 -7 -6 -6 -6 -6 -6 -6 -5 -5 -5 -5 -5 -4 -4 -4 -4 -4 -4 -3 -3 -3 --------- Run | Yrd Mat Min Mat Min Mat Fac Low Low Dat Pro Fac Low Low Zio Dee Pro Fac Upp Upp Zhi Pro Fac Ext Cet Arc Hub Res Qua Sec Levels Raised 29 | . . . 2 1 1 4 . 2 1 2 2 1 . . 1 2 2 . . 1 . 3 1 . . 1 . 1 1 XP Earned 47052 | 3000 . 850 2710 1012 1650 6471 600 2200 2250 1900 4007 500 418 453 699 2938 3429 449 318 204 1250 3582 1992 239 216 711 736 651 1617 XP Spent 45880 | 3000 . . 1200 . 4400 4880 1100 . 1100 6650 3100 . . . 2000 2300 2800 1850 . 1250 . 4500 . . 1500 . . 3150 1100 Upgrades 66 | 5 . . 3 . 4 24 1 . 1 12 2 . . . 1 1 3 2 . 1 . 2 . . 1 . . 2 1 Propulsion Slot 3 | 1 . . . . . . . . . 1 . . . . . . . . . . . . . . . . . . 1 Utility Slot 9 | . . . . . . 2 . . 1 . 2 . . . 1 1 1 . . . . 1 . . . . . . . Weapon Slot 4 | 3 . . . . . . . . . . . . . . . . . . . . . . . . . . . 1 . Core Integrity 14 | . . . . . . 14 . . . . . . . . . . . . . . . . . . . . . . . Heat Dissipation 4 | . . . . . . 2 . . . . . . . . . . 2 . . . . . . . . . . . . Energy Generation 4 | . . . . . . 2 . . . . . . . . . . . 2 . . . . . . . . . . . Mass Support 4 | 1 . . . . . 1 1 . . . . . . . . . . . . . . 1 . . . . . . . Inventory Capacity 7 | . . . . . . 1 . . . 3 . . . . . . . . . 1 . . . . 1 . . 1 . Melee Accuracy 2 | . . . . . . 2 . . . . . . . . . . . . . . . . . . . . . . . Hack Attack % 7 | . . . 3 . 4 . . . . . . . . . . . . . . . . . . . . . . . . KI Resistance % 4 | . . . . . . . . . . 4 . . . . . . . . . . . . . . . . . . . TH Resistance % 4 | . . . . . . . . . . 4 . . . . . . . . . . . . . . . . . . . Protomatter Created 6647 | . . 17 124 82 . 338 162 304 165 133 578 . . 56 200 369 715 287 . . 8 1408 648 118 85 132 64 . 654 Integrity Restored 11861 | . . 51 266 173 . 537 486 1038 490 198 590 . . 162 169 577 1597 251 78 . 18 1937 1004 187 148 9 154 395 1346 Core 9891 | . . 51 195 144 . 537 486 1038 391 111 484 . . 142 109 433 1222 190 48 . 17 1591 751 119 107 9 139 380 1197 Parts 1970 | . . . 71 29 . . . . 99 87 106 . . 20 60 144 375 61 30 . 1 346 253 68 41 . 15 15 149 Protomatter Decayed 2541 | . . . 32 202 . 47 . . . . 92 . . . 145 15 291 90 . . 1 747 252 52 33 343 . . 199 Game ------ Seed SapperAssembledBattery Manual? 0 Play Time 02:54:16 Cumulative 271.1 hours Start 2025.06.08 @ 00:03:17 End 2025.06.08 @ 13:56:54 Sessions 7 Manual Loads 0 Difficulty Rogue Special Mode Winter2019/RPGLIKE Game No. 270 Rogue 81 Adventurer 177 Explorer 12 Win Type - Total 65 Types 19/1/16/2/12/0/4/5/0/6 Lore% 55 Gallery% 54 Achievement% 71 Wizard Run 0 Options --------- Layout 0 ASCII 0 Keyboard 0 Movement Numpad Keybinds 0 Fullscreen 2 Font 12/Smallcaps Map View 83x54 Zoom Use 0% Tactical HUD 0 Map Filters NONE Filters NONE Steam 1 RUN: 1f2cb951-8b20-46f6-b310-ee6c033682a2